Cogmind - Beta 15 @@@ ROGUE MODE // 2025.10.01 @ 22:27:25 Player: GayPredator Result: Destroyed by P-70 Sage with High-powered Shock Rifle Performance ------------- Evolutions (4) 2000 Regions Visited (9) 1800 Robots Destroyed (62) 310 Value Destroyed (1761) 1761 Prototype IDs (10) 200 Alien Tech Used (0) 0 Bonus (1199) 1199 TOTAL SCORE: 7270 Bonus ------- Follower Combat Kills 99 Registered with UFD 300 Met Optimus in HQ 500 Met Data Miner 300 Cogmind --------- Core Integrity 0/850 Matter 270/300 Energy 95/100 System Corruption 3% Temperature Cool (0) Movement Core (50) Location -5/Proximity Caves Parts ------- > --- POWER (1) -------- (None) > --- PROPULSION (4) --- (None) > --- UTILITY (7) ------ (None) > --- WEAPON (3) ------- Spear > --- INVENTORY (5) ---- Improved Treads Advanced Heat Sink Improved Reaction Control System A0-MCA's Component Scanner Heavy Plasma Cannon Peak State ------------ > --- POWER ------------ Improved Deuterium Engine > --- PROPULSION ------- Light Treads Light Treads Light Treads Advanced Treads > --- UTILITY ---------- Large Storage Unit Improved Signal Interpreter Advanced Terrain Scan Processor Kinecellerator Improved Propulsion Shielding Improved Medium Armor Plating Improved System Restoration Module > --- WEAPON ----------- Flak Gun Flak Gun Magnetic Acceleration Cannon > --- INVENTORY -------- Improved Deuterium Engine Advanced Heat Sink Coolant Injector Large Matter Pod Improved Sensor Array Improved Terrain Scanner Propulsion Shielding Improved Light Armor Plating Makeshift Light Armor Plating Focal Shield A0-MCA's Component Scanner Thief Drone Bay Heavy Flak Cannon Makeshift Axe [Rating: 52] Favorites ----------- Power Ion Engine Engine Ion Engine Propulsion Light Treads Treads Light Treads Wheel Compact Wheel Utility Large Storage Unit Device Heat Sink Storage Large Storage Unit Processor Improved Signal Interpreter Protection Propulsion Shielding Weapon Flak Gun Energy Gun Beam Rifle Energy Cannon Beam Cannon Ballistic Gun Flak Gun Ballistic Cannon Magnetic Acceleration Cannon Slashing Weapon Makeshift Axe Piercing Weapon Spear Build | -11 -10 -10 -10 -9 -6 -6 -6 -6 -5 ------- Run | Yrd Mat Min Sub Scr Fac Low Low Dat Pro Slots Evolved 8 | . . . . . 8 . . . . Power . | . . . . . . . . . . Propulsion 2 | . . . . . 2 . . . . Utility 5 | . . . . . 5 . . . . Weapon 1 | . . . . . 1 . . . . Parts Attached 56 | 7 8 3 5 3 21 8 1 . . Power 5 | 1 . . 1 2 1 . . . . Engine 5 | 1 . . 1 2 1 . . . . Core . | . . . . . . . . . . Reactor . | . . . . . . . . . . Propulsion 11 | 2 1 2 1 . 3 2 . . . Treads 10 | 2 . 2 1 . 3 2 . . . Leg . | . . . . . . . . . . Wheel 1 | . 1 . . . . . . . . Hover . | . . . . . . . . . . Flight . | . . . . . . . . . . Utility 25 | 2 3 1 . 1 13 5 . . . Device 12 | 1 1 1 . 1 5 3 . . . Storage 3 | 1 2 . . . . . . . . Processor 4 | . . . . . 4 . . . . Hackware . | . . . . . . . . . . Protection 6 | . . . . . 4 2 . . . Artifact . | . . . . . . . . . . Weapon 15 | 2 4 . 3 . 4 1 1 . . Energy Gun 5 | . 2 . 2 . . 1 . . . Energy Cannon 2 | . 2 . . . . . . . . Ballistic Gun 4 | 2 . . . . 2 . . . . Ballistic Cannon 2 | . . . . . 2 . . . . Launcher . | . . . . . . . . . . Special Weapon . | . . . . . . . . . . Impact Weapon . | . . . . . . . . . . Slashing Weapon 1 | . . . 1 . . . . . . Piercing Weapon 1 | . . . . . . . 1 . . Special Melee Weapon . | . . . . . . . . . . Unidentified Prototypes 1 | . . 1 . . . . . . . Parts Lost 22 | . . . 2 . 1 19 . . . Power 2 | . . . 1 . . 1 . . . Propulsion 5 | . . . 1 . . 4 . . . Utility 10 | . . . . . 1 9 . . . Weapon 5 | . . . . . . 5 . . . Highest Loss Streak 15 | . . . 1 . 1 15 . . . To Critical Strikes . | . . . . . . . . . . Average Backups 11 | 2 9 13 14 14 12 7 5 5 5 Power . | . 1 1 . 1 1 . . . . Propulsion 1 | . 1 2 2 1 . . 1 1 1 Utility 7 | . 4 7 8 8 9 5 3 3 3 Weapon 2 | . 1 2 3 2 1 1 1 1 1 Tool/Special . | . . . . . . . . . . Unused Backups 20 | . 6 . 1 5 2 1 1 . 4 Power 2 | . . . . 1 . 1 . . . Propulsion 2 | . . . . 1 . . . . 1 Utility 8 | . 2 . 1 . 2 . 1 . 2 Weapon 8 | . 4 . . 3 . . . . 1 Tool/Special . | . . . . . . . . . . Average Slot Usage (%) 82 | . 99 100 99 71 91 44 6 6 6 Engine 10 | . 14 14 14 14 6 1 . . . Treads 24 | . 27 28 27 28 24 8 . . . Device 12 | . 14 14 14 14 12 9 . . . Storage 10 | . 14 14 14 14 6 4 . . . Processor 2 | . . . . . 8 6 . . . Protection 3 | . . . . . 12 3 . . . Energy Gun 5 | . 1 28 25 . . 1 . . . Energy Cannon 2 | . 15 . . . . . . . . Ballistic Gun 4 | . 11 . . . 10 3 . . . Ballistic Cannon 1 | . . . . . 5 2 . . . Peak Build Rating 52 | 7 10 16 17 17 52 52 11 6 6 Average Rating 19 | 5 7 10 12 11 46 25 6 6 6 On Entrance 12 | . 7 10 11 12 17 49 7 6 6 Naked Turns 104 | . . . . . . 104 . . . Heaviest Build 64 | 15 32 32 35 34 64 61 4 2 2 Greatest Support 82 | 40 40 40 40 40 82 62 3 3 3 Greatest Overweight (x) 11 | . . . . . 1 11 1 . . Average Overweight (x) . | . . . . . . . . . . Largest Inventory Capacity 15 | 8 15 15 15 15 15 15 5 5 5 Average Capacity 13 | 7 10 15 15 15 15 11 5 5 5 Most Carried 15 | 5 13 14 15 15 15 13 5 5 5 Average Carried 12 | 2 9 13 14 14 12 7 4 5 5 Final Capacity 15 | 8 15 15 15 15 15 5 5 5 5 Final Carried 15 | 5 13 14 15 15 13 5 5 5 5 Class Distribution -------------------- 78% | Mutant 17% | Scavenger-Skirmisher Dominant Class ---------------- Mutant | -10/Materials Mutant | -10/Mines Mutant | -10/Subcaves Mutant | -9/Scraptown Scavenger-Skirmisher | -6/Factory Mutant | -6/Lower Caves Mutant | -6/Lower Caves Mutant | -6/Data Miner Mutant | -5/Proximity Caves Resources | -11 -10 -10 -10 -9 -6 -6 -6 -6 -5 ----------- Run | Yrd Mat Min Sub Scr Fac Low Low Dat Pro Matter Collected 2213 | 318 395 50 125 16 782 408 119 . . Remotely . | . . . . . . . . . . Salvage Created 1750 | 147 356 165 294 . 521 267 . . . Parts 112 | 10 35 9 19 . 32 7 . . . Haulers Intercepted 1 | . 1 . . . . . . . . Recyclers Shooed 2 | . . . . . 2 . . . . Parts Field Recycled . | . . . . . . . . . . Retrieved Matter . | . . . . . . . . . . Parts Self-Destructed 39 | . . . 20 . . 12 . . 7 Prevented . | . . . . . . . . . . Kills | -11 -10 -10 -10 -9 -6 -6 -6 -6 -5 ------- Run | Yrd Mat Min Sub Scr Fac Low Low Dat Pro Combat Hostiles Destroyed 48 | . 10 8 9 . 12 9 . . . Melee 2 | . . . . . . 2 . . . Guns 35 | . 10 8 9 . 3 5 . . . Cannons 11 | . . . . . 9 2 . . . Classes Destroyed 14 | 2 5 . 2 . 3 2 . . . Builder 5 | . . . . . 5 . . . . Tunneler 2 | 2 . . . . . . . . . Hauler 1 | . 1 . . . . . . . . Recycler 2 | 1 . . . . 1 . . . . Operator 1 | . 1 . . . . . . . . Turret 1 | . . . 1 . . . . . . Watcher 2 | . 1 . . . 1 . . . . Swarmer 23 | . 6 6 4 . 3 4 . . . Grunt 12 | . 4 2 . . 4 2 . . . Brawler 1 | . . . . . . 1 . . . Sentry 2 | . . . . . 1 1 . . . Programmer 4 | . . . . . 4 . . . . Behemoth 1 | . . . . . . 1 . . . Subdweller 5 | . . . 5 . . . . . . Best Kill Streak 6 | 3 4 3 2 . 6 4 . . . Combat Bots Only 4 | . 3 3 2 . 3 4 . . . Max Kills in Single Turn 5 | 1 1 2 1 . 5 2 . . . Gunslinging 1 | . . 1 . . . . . . . Exploded . | . . . . . . . . . . Melee 1 | . . . . . . 1 . . . Uniques/NPCs Destroyed . | . . . . . . . . . . Combat | -11 -10 -10 -10 -9 -6 -6 -6 -6 -5 -------- Run | Yrd Mat Min Sub Scr Fac Low Low Dat Pro Hostile Shots Fired 381 | . 29 44 56 . 74 172 . . 6 Missed 120 | . 7 10 20 . 29 52 . . 2 Hits 261 | . 22 34 36 . 45 120 . . 4 Melee 11 | . . . . . . 11 . . . Projectile 250 | . 22 34 36 . 45 109 . . 4 Critical Strikes 7 | . . 1 . . 2 3 . . 1 Actively Blocked 1 | . . . . . 1 . . . . Damage Taken 4880 | . 219 340 525 . 913 2778 . . 105 Core 948 | . 33 22 37 . 63 688 . . 105 Absorbed by Shields . | . . . . . . . . . . Redirected to Shielding 165 | . . . . . 135 30 . . . Ignored by Resistances 26 | . . . . . . 26 . . . Core Remaining (%) 81 | 100 . . . 63 . . . . . Volleys Fired 166 | 8 32 14 30 . 55 27 . . . Largest 3 | 2 2 2 2 . 3 3 . . . Hottest 120 | 40 120 112 112 . 100 100 . . . Shots Fired 305 | 16 64 28 59 . 93 45 . . . Gun 225 | 16 54 28 59 . 40 28 . . . Cannon 80 | . 10 . . . 53 17 . . . Launcher . | . . . . . . . . . . Special . | . . . . . . . . . . Kinetic 201 | 16 54 . . . 93 38 . . . Thermal 104 | . 10 28 59 . . 7 . . . Explosive . | . . . . . . . . . . Electromagnetic . | . . . . . . . . . . Robot Hit Streak 13 | 4 11 13 13 . 10 13 . . . Robot Miss Streak 16 | 1 3 2 3 . 5 16 . . . Penetration Max . | . . . . . . . . . . Secondary Targets 4 | . 1 2 1 . . . . . . Max Gunslinging Chain 1 | . 1 1 1 . . . . . . Shots Hit Robots 237 | 10 45 24 40 . 69 46 . . 3 Core Hits 152 | 3 21 10 18 . 63 36 . . 1 Critical Kills . | . . . . . . . . . . Critical Parts Destroyed . | . . . . . . . . . . Critical Strikes 10 | . . 3 4 . 2 1 . . . Burn 7 | . . 3 4 . . . . . . Blast 2 | . . . . . 2 . . . . Sever 1 | . . . . . . 1 . . . Melee Attacks 16 | . . . 2 . . 9 . . 5 Impact . | . . . . . . . . . . Slashing 11 | . . . 2 . . 9 . . . Piercing 5 | . . . . . . . . . 5 Sneak Attacks 1 | . . . . . . . . . 1 Combat Hostiles 1 | . . . . . . . . . 1 Follow-up Attacks . | . . . . . . . . . . Damage Inflicted 5324 | 132 566 363 593 . 2349 1218 . . 103 Guns 2761 | 132 506 363 593 . 694 473 . . . Cannons 1476 | . 52 . . . 930 494 . . . Explosions 684 | . . . . . 684 . . . . Melee 354 | . . . . . . 251 . . 103 Ramming 49 | . 8 . . . 41 . . . . Kinetic 3064 | 132 506 . . . 1624 802 . . . Thermal 1173 | . 52 363 593 . . 165 . . . Explosive 684 | . . . . . 684 . . . . Electromagnetic . | . . . . . . . . . . Impact . | . . . . . . . . . . Slashing 251 | . . . . . . 251 . . . Piercing 103 | . . . . . . . . . 103 Highest Corruption 4 | . 1 1 1 1 4 2 2 2 3 Average Corruption 1 | . 1 1 1 1 3 2 2 2 2 Corruption Purged 4 | . . . . . 4 . . . . Corruption Blocked . | . . . . . . . . . . Effects 31 | . 1 3 6 12 3 4 . 2 . Message Errors 13 | . 1 1 4 4 1 2 . . . Matter Fused 6 | . . 1 . 3 . 1 . 1 . Heat Flow Errors 1 | . . . 1 . . . . . . Energy Discharges 3 | . . 1 . 1 1 . . . . Data Loss (minor) 3 | . . . . 2 . . . 1 . Data Loss (major) 4 | . . . . 2 1 1 . . . Misfires 1 | . . . 1 . . . . . . Overload Shots . | . . . . . . . . . . Overflow Damage 92 | . . . . . 76 . . . 16 Projectiles 19 | . . . . . 19 . . . . Explosions 57 | . . . . . 57 . . . . Melee 16 | . . . . . . . . . 16 Knockbacks 27 | . 1 . . . 21 5 . . . Impact 1 | . 1 . . . . . . . . Kinetic 23 | . . . . . 19 4 . . . Secondary 3 | . . . . . 2 1 . . . Self-Inflicted Damage 275 | . . . . . 275 . . . . Shots 4 | . . . . . 4 . . . . Rammed 7 | . 2 . . . 5 . . . . Targets Rammed 7 | . 2 . . . 5 . . . . Kicked . | . . . . . . . . . . Crushed . | . . . . . . . . . . Highest Temperature 341 | . 90 177 223 . 119 341 . . . Average Temperature 57 | . 33 71 35 . 27 99 . . . Received Heat Transfer 1043 | . 78 72 78 . 135 680 . . . Effects 3 | . . . . . . 3 . . . Interference 3 | . . . . . . 3 . . . Siege Activations . | . . . . . . . . . . Martial Activations . | . . . . . . . . . . Shielding Activations . | . . . . . . . . . . Robots Disrupted . | . . . . . . . . . . Combat Hostiles . | . . . . . . . . . . Robots Corrupted . | . . . . . . . . . . Combat Hostiles . | . . . . . . . . . . Parts Fried . | . . . . . . . . . . Impact Corruptions . | . . . . . . . . . . Robots Melted . | . . . . . . . . . . Combat Hostiles . | . . . . . . . . . . Parts Melted 7 | . . 6 1 . . . . . . Heat Transferred 3293 | . 111 1110 1813 . . 259 . . . Parts Sabotaged . | . . . . . . . . . . Parts Stolen . | . . . . . . . . . . Parts Stripped . | . . . . . . . . . . Power Chain Reactions . | . . . . . . . . . . Alert | -11 -10 -10 -10 -9 -6 -6 -6 -6 -5 ------- Run | Yrd Mat Min Sub Scr Fac Low Low Dat Pro Maximum Alert Level 1 | . . . . . 1 . . . . Low Security (%) 98 | 100 100 100 . . 96 . . . . Level 1 1 | . . . . . 3 . . . . Level 2 . | . . . . . . . . . . Level 3 . | . . . . . . . . . . Level 4 . | . . . . . . . . . . Level 5 . | . . . . . . . . . . High Security . | . . . . . . . . . . Max Security . | . . . . . . . . . . Peak Influence 220 | 5 78 130 . . 220 . . . . Initial . | . . . . . . . . . . Average 35 | 1 17 48 . . 46 . . . . Influence Increases 1746 | 15 267 190 259 . 608 382 . . 25 Destroy 0b10 Robot/C 980 | . 200 160 180 . 240 180 . . 20 Destroy 0b10 Robot/NC 65 | 15 15 . . . 35 . . . . Destroy Leader 166 | . 34 30 10 . 72 20 . . . Allied During Kill 16 | . . . 9 . . 2 . . 5 Successful Hack 47 | . 17 . . . 30 . . . . Disable Machine 90 | . . . . . 90 . . . . Destroy Structure 52 | . 1 . . . 51 . . . . Lose Combat Pursuer 330 | . . . 60 . 90 180 . . . Influence Decreases 1731 | 15 267 190 100 159 400 482 71 37 10 Entered New Map 295 | . . . . 159 . 78 21 37 . Time Decay 1216 | 15 267 190 80 . 390 214 50 . 10 Lost Part 200 | . . . . . 10 190 . . . Lost Ally 20 | . . . 20 . . . . . . Squads Dispatched 9 | . 1 . . . 8 . . . . Investigation 3 | . . . . . 3 . . . . Extermination 3 | . . . . . 3 . . . . Reinforcement 3 | . 1 . . . 2 . . . . Assault . | . . . . . . . . . . Garrison . | . . . . . . . . . . Intercept . | . . . . . . . . . . Searches Triggered . | . . . . . . . . . . Construction Impeded 1 | . . . . . 1 . . . . Haulers Reinforced . | . . . . . . . . . . Active Scanning Responses . | . . . . . . . . . . Cargo Convoy Interrupts . | . . . . . . . . . . Stealth | -11 -10 -10 -10 -9 -6 -6 -6 -6 -5 --------- Run | Yrd Mat Min Sub Scr Fac Low Low Dat Pro Distress Signals 1 | . 1 . . . . . . . . Communications Jammed . | . . . . . . . . . . Distress Signals . | . . . . . . . . . . Times Spotted 88 | . 17 8 17 . 21 21 . . 4 Peak Tracking Total 10 | . 4 3 4 . 5 10 . . 4 Tactical Retreats 10 | . . . 2 . 3 5 . . . Traps | -11 -10 -10 -10 -9 -6 -6 -6 -6 -5 ------- Run | Yrd Mat Min Sub Scr Fac Low Low Dat Pro Traps Triggered 1 | . 1 . . . . . . . . Indirectly . | . . . . . . . . . . Trap Hack Attempts . | . . . . . . . . . . Triggered . | . . . . . . . . . . Disarmed . | . . . . . . . . . . Reprogrammed . | . . . . . . . . . . Reused . | . . . . . . . . . . Traps Extracted . | . . . . . . . . . . Installed . | . . . . . . . . . . Triggered . | . . . . . . . . . . Machines | -11 -10 -10 -10 -9 -6 -6 -6 -6 -5 ---------- Run | Yrd Mat Min Sub Scr Fac Low Low Dat Pro Machines Disabled 8 | . . . 2 . 6 . . . . Max in Single Turn 3 | . . . 1 . 3 . . . . Machines Repaired . | . . . . . . . . . . Machines Dismantled . | . . . . . . . . . . Machines Sabotaged . | . . . . . . . . . . Overloaded Fab Kills . | . . . . . . . . . . Hacking | -11 -10 -10 -10 -9 -6 -6 -6 -6 -5 --------- Run | Yrd Mat Min Sub Scr Fac Low Low Dat Pro Machines Accessed 23 | . 6 1 . 2 10 . . 4 . Terminals 10 | . 6 . . . 4 . . . . Fabricators . | . . . . . . . . . . Repair Stations 1 | . . . . . 1 . . . . Recycling Units 3 | . . . . . 3 . . . . Scanalyzers . | . . . . . . . . . . Garrison Access 2 | . . . . . 2 . . . . Total Hacks 74 | . 18 1 . 7 19 . . 29 . Successful 53 | . 10 1 . 7 6 . . 29 . Failed 21 | . 8 . . . 13 . . . . Catastrophic 5 | . 1 . . . 4 . . . . Database Lockouts . | . . . . . . . . . . Manual 24 | . 11 . . . 13 . . . . Terminals 30 | . 18 . . . 12 . . . . Fabricators . | . . . . . . . . . . Repair Stations 1 | . . . . . 1 . . . . Recycling Units 3 | . . . . . 3 . . . . Scanalyzers . | . . . . . . . . . . Garrison Access 3 | . . . . . 3 . . . . Terminal Hacks 42 | . 4 1 . 7 1 . . 29 . Record 18 | . . . . 7 . . . 11 . Part Schematic 8 | . . . . . . . . 8 . Robot Schematic 7 | . . . . . . . . 7 . Robot Analysis 3 | . 3 . . . . . . . . Prototype ID Bank 3 | . . . . . . . . 3 . Open Door 1 | . . 1 . . . . . . . Terminal Index 1 | . . . . . 1 . . . . Locate Traps 1 | . 1 . . . . . . . . Fabricator Hacks . | . . . . . . . . . . Repair Station Hacks . | . . . . . . . . . . Recycling Unit Hacks . | . . . . . . . . . . Scanalyzer . | . . . . . . . . . . Garrison Access Hacks . | . . . . . . . . . . Unauthorized Hacks 11 | . 6 . . . 5 . . . . Terminals 8 | . 6 . . . 2 . . . . Botnet 3 | . 1 . . . 2 . . . . Skim 5 | . 5 . . . . . . . . Fabricators . | . . . . . . . . . . Repair Stations . | . . . . . . . . . . Recycling Units 3 | . . . . . 3 . . . . Fedlink 3 | . . . . . 3 . . . . Scanalyzers . | . . . . . . . . . . Garrison Access . | . . . . . . . . . . Data Cores Recovered . | . . . . . . . . . . Used . | . . . . . . . . . . Hacking Detections 13 | . 6 . . . 7 . . . . Full Trace Events . | . . . . . . . . . . Feedback Events . | . . . . . . . . . . Feedback Blocked . | . . . . . . . . . . Robot Schematics Acquired 7 | . . . . . . . . 7 . Robots Built . | . . . . . . . . . . Authchips . | . . . . . . . . . . Time . | . . . . . . . . . . Total Robot Build Rating . | . . . . . . . . . . Part Schematics Acquired 8 | . . . . . . . . 8 . Parts Built . | . . . . . . . . . . Authchips . | . . . . . . . . . . Time . | . . . . . . . . . . Total Part Build Rating . | . . . . . . . . . . Parts Repaired . | . . . . . . . . . . Time . | . . . . . . . . . . Parts Recycled . | . . . . . . . . . . Recycled Matter . | . . . . . . . . . . Retrieved Matter . | . . . . . . . . . . Retrieved Components . | . . . . . . . . . . Parts Scanalyzed . | . . . . . . . . . . Part Schematics Acquired . | . . . . . . . . . . Parts Damaged . | . . . . . . . . . . Bothacking | -11 -10 -10 -10 -9 -6 -6 -6 -6 -5 ------------ Run | Yrd Mat Min Sub Scr Fac Low Low Dat Pro Used RIF Installer . | . . . . . . . . . . Robots Hacked . | . . . . . . . . . . Non-combat . | . . . . . . . . . . Combat . | . . . . . . . . . . Robot Hacks Applied . | . . . . . . . . . . Relay Couplers Released 4 | . . . . . 4 . . . . Programmers 4 | . . . . . 4 . . . . Fabnet Peak Effective % . | . . . . . . . . . . Robots Rewired . | . . . . . . . . . . Allies Hacked . | . . . . . . . . . . Hacks Repelled . | . . . . . . . . . . Allies | -11 -10 -10 -10 -9 -6 -6 -6 -6 -5 -------- Run | Yrd Mat Min Sub Scr Fac Low Low Dat Pro Total Allies 1 | . . . . . . . . . 1 Largest Group 1 | . . . . . . . . . 1 Highest-Rated Group 96 | . . . . . . . . . 96 Highest-Rated Ally 96 | . . . . . . . . . 96 Total Orders 8 | . . 1 1 . . 6 . . . ROAM 3 | . . . . . . 3 . . . EXPLORE 2 | . . . . . . 2 . . . RETURN 3 | . . 1 1 . . 1 . . . Ally Attacks 41 | . . . 29 . . 9 . . 3 Total Damage 266 | . . . 137 . . 19 . . 110 Kills 5 | . . . 4 . . . . . 1 Allies Corrupted . | . . . . . . . . . . Allies Melted . | . . . . . . . . . . Intel | -11 -10 -10 -10 -9 -6 -6 -6 -6 -5 ------- Run | Yrd Mat Min Sub Scr Fac Low Low Dat Pro Active Infowar (turns) 2166 | 18 455 . . . 1495 198 . . . Sensors 1581 | . . . . . 1383 198 . . . Terrain 740 | . . . . . 663 77 . . . Seismic 473 | 18 455 . . . . . . . . Robot Analysis Total 3 | . 3 . . . . . . . . Derelict Logs Recovered 6 | . . 1 . 3 . 1 1 . . Drone Launches 18 | . . 3 7 . . 8 . . . Drone Recoveries 15 | . . 3 6 . . 6 . . . Exploration | -11 -10 -10 -10 -9 -6 -6 -6 -6 -5 ------------- Run | Yrd Mat Min Sub Scr Fac Low Low Dat Pro Turns Passed 6351 | 117 1134 458 741 1736 1526 447 116 40 36 Spaces Moved 3663 | 53 534 243 361 1077 713 343 226 80 33 Core 601 | 8 . . . . . 254 226 80 33 Treads 3031 | 45 503 243 361 1077 713 89 . . . Legs . | . . . . . . . . . . Wheels 31 | . 31 . . . . . . . . Hover . | . . . . . . . . . . Flight . | . . . . . . . . . . Fastest Speed 50 | 50 100 160 160 160 156 50 50 50 50 Average Speed 141 | 143 156 160 160 160 158 85 50 50 50 Slowest Speed 600 | 160 160 160 160 160 240 600 100 50 50 Overloaded Moves . | . . . . . . . . . . Propulsion Burnouts . | . . . . . . . . . . Robots Hopped . | . . . . . . . . . . Potential Cave-ins 4 | . . . . . . 4 . . . Cave-ins Triggered . | . . . . . . . . . . Exploration Rate (%) 46 | 4 89 56 37 81 21 57 43 68 7 Regions Visited 9 Branch Regions 7 Pre-discovered Areas 3 | . . . . 1 1 . . 1 . Known Exits Taken 3 | . 1 1 . . 1 . . . . Unknown Exits Taken 6 | 1 . . 1 1 . 1 1 1 . Scrap Searched 10 | . . 2 . 4 . 1 3 . . Spaces Dug 9 | . . . . . 9 . . . . Terrain Destroyed 57 | . . . . . 57 . . . . Melee . | . . . . . . . . . . Projectile 13 | . . . . . 13 . . . . AOE 44 | . . . . . 44 . . . . Terrain Rammed . | . . . . . . . . . . Walls Destroyed . | . . . . . . . . . . Machines Disabled . | . . . . . . . . . . Actions | -11 -10 -10 -10 -9 -6 -6 -6 -6 -5 --------- Run | Yrd Mat Min Sub Scr Fac Low Low Dat Pro Total 4509 | 75 771 284 462 1094 1027 442 228 79 47 Wait 478 | 3 165 19 47 . 195 40 . . 9 Move 3654 | 52 533 242 360 1076 712 342 225 79 33 Hop . | . . . . . . . . . . Pick Up 45 | 5 16 2 6 4 12 . . . . Fast Attach 34 | 7 4 1 1 2 10 8 1 . . Attach 24 | . . 1 4 . 12 7 . . . Detach 8 | . . 1 . 1 5 . 1 . . Swap 28 | . 5 2 8 1 9 3 . . . Drop 47 | . 14 2 4 10 12 4 1 . . Fire 166 | 8 32 14 30 . 55 27 . . . Melee 16 | . . . 2 . . 9 . . 5 Ram . | . . . . . . . . . . Kick . | . . . . . . . . . . Crush 7 | . 2 . . . 5 . . . . Escape Stasis . | . . . . . . . . . . Rewire 2 | . . . . . . 2 . . . Trap . | . . . . . . . . . . Miscellaneous . | . . . . . . . . . . Route ------- -11/Scrapyard -10/Materials (discovered 5 exits: *Mat x3 / *Min / Sub) -10/Mines (discovered 3 exits: *Mat x2 / *Sub) -10/Subcaves (discovered 3 exits: [*Mat] / [*Rec] / *Scr) -9/Scraptown (discovered 2 exits: *Fac x2) -6/Factory (discovered 2 exits: *Fac / *Low) -6/Lower Caves -6/Lower Caves -6/Data Miner -5/Proximity Caves History --------- Turn | Location | Event 13 | -11/Scrapyard | Discovered new exit (range 15) 118 | -11/Scrapyard | Entered Materials 305 | -10/Materials | Build established: Mutant 402 | -10/Materials | Discovered new exit (range 14) 684 | -10/Materials | Discovered new exit (range 15) 718 | -10/Materials | Derelicts attacked the area 929 | -10/Materials | Learned Recycling recycling unit intel 941 | -10/Materials | Discovered new exit (range 13) 983 | -10/Materials | Identified exit to Subcaves 1028 | -10/Materials | Learned Storage security intel 1061 | -10/Materials | Learned 2 Storage zone layouts 1082 | -10/Materials | Learned 2 Mines zone layouts 1095 | -10/Materials | Learned 2 Mines zone layouts 1151 | -10/Materials | Identified exit to Materials 1151 | -10/Materials | Identified exit to Mines 1252 | -10/Materials | Entered Mines 1304 | -10/Mines | Met a Derelict bent on vengeance 1393 | -10/Mines | Discovered exit to Materials (range 11) 1450 | -10/Mines | Found the Drone Emporium 1457 | -10/Mines | Found Prototype Device 1482 | -10/Mines | Identified Thief Drone Bay 1539 | -10/Mines | A weapon hastily lodged in a ceiling crevice suddenly fell to the ground 1552 | -10/Mines | Learned 4 Materials zone layouts 1694 | -10/Mines | Discovered exit to Subcaves (range 10) 1710 | -10/Mines | Entered Subcaves 1711 | -10/Subcaves | Approached by a straggling Scientist 1827 | -10/Subcaves | Shifting Twisted Machinery released Mak. Light Armor Plating 1834 | -10/Subcaves | Shifting Twisted Machinery released Battle Rifle 2171 | -10/Subcaves | Disturbed a concealed Subdweller 2193 | -10/Subcaves | Shifting Twisted Machinery released Riot Gun 2198 | -10/Subcaves | Shifting Twisted Machinery released Sub. Power Source 2213 | -10/Subcaves | Discovered new exit (range 8) 2274 | -10/Subcaves | Discovered new exit (range 13) 2436 | -10/Subcaves | Scientist uncovered a shortcut to Scraptown 2451 | -10/Subcaves | Entered Scraptown 2598 | -9/Scraptown | Heard Great Nut preacher, LISTEN AND RECITE! 2680 | -9/Scraptown | Visited Assassins FH 2715 | -9/Scraptown | Visited CPS Storage 2732 | -9/Scraptown | Visited Spacefarers 2806 | -9/Scraptown | Visited Junk Repository 2840 | -9/Scraptown | Visited Symbiants 3062 | -9/Scraptown | Visited Red Mages 3104 | -9/Scraptown | Visited Cyclists 3163 | -9/Scraptown | Scanned Subdweller tech in exchange for log data 3168 | -9/Scraptown | Learned location of Extension (-5) 3169 | -9/Scraptown | Learned 12 Research zone layouts 3171 | -9/Scraptown | Learned Research emergency access door positions 3190 | -9/Scraptown | Discovered new exit (range 11) 3617 | -9/Scraptown | Visited UFD Registry 3617 | -9/Scraptown | Registered with UFD as "Carbontube" 3652 | -9/Scraptown | Visited Abandonware Association 3670 | -9/Scraptown | Learned abandonware demo "HACKBUD.EXE" 3670 | -9/Scraptown | Learned abandonware demo "MELTYB.EXE" 3707 | -9/Scraptown | Visited Science Testing Area 3729 | -9/Scraptown | Visited A0-MCA Data Center 3739 | -9/Scraptown | Given a B- rating by A0-MCA 3746 | -9/Scraptown | Found A0-MCA's Component Scanner 3972 | -9/Scraptown | Visited LU-1G1's Boring Crew 4036 | -9/Scraptown | Visited Scrap Suit Storage 4100 | -9/Scraptown | Met Optimus 4100 | -9/Scraptown | Accepted into 0bPrime 4180 | -9/Scraptown | Discovered new exit (range 5) 4187 | -9/Scraptown | Entered Factory 4187 | -6/Factory | Evolved 8 slots: Propulsion x2, Utility x5, Weapon x1 4394 | -6/Factory | Discovered new exit (range 15) 4519 | -6/Factory | Identified exit to Factory 4860 | -6/Factory | Build established: Scavenger-Skirmisher 5185 | -6/Factory | Loaded intel: 8 recycling unit locations 5501 | -6/Factory | Discovered new exit (range 5) 5507 | -6/Factory | Identified exit to Lower Caves 5583 | -6/Factory | Learned location of Protoforge (-2) 5713 | -6/Factory | Entered Lower Caves 5805 | -6/Lower Caves | Spotted B-75 Beast 5813 | -6/Lower Caves | Attracted the attention of an 0b10 outpost 5901 | -6/Lower Caves | Core integrity fell below 50% 5908 | -6/Lower Caves | Destroyed B-75 Beast 5942 | -6/Lower Caves | Lost 15 parts (1p3n7u4w) 6038 | -6/Lower Caves | Released all parts (5) 6057 | -6/Lower Caves | Core integrity fell below 20% 6107 | -6/Lower Caves | Build established: Mutant 6155 | -6/Lower Caves | Learned location of 1 exit from Factory 6155 | -6/Lower Caves | Discovered new exit (range 10) 6160 | -6/Lower Caves | Entered another Lower Caves area 6188 | -6/Lower Caves | Learned 4 Factory zone layouts 6268 | -6/Lower Caves | Discovered new exit (range 9) 6276 | -6/Lower Caves | Entered Data Miner 6276 | -6/Data Miner | Discovered new exit (range 6) 6286 | -6/Data Miner | Met Data Miner 6296 | -6/Data Miner | Learned location of Section 7 (-2) 6296 | -6/Data Miner | Acquired the access code to Warlord's prototype stash 6305 | -6/Data Miner | Received God Mode back door access code from Data Miner 6316 | -6/Data Miner | Entered Proximity Caves 6319 | -5/Proximity Caves | Spotter reported a threat 6321 | -5/Proximity Caves | Spotter reported a threat 6325 | -5/Proximity Caves | Escorted by Enhanced Grunt 6352 | -5/Proximity Caves | Destroyed by P-70 Sage with High-powered Shock Rifle Last Messages --------------- and enter \\PEGG to gain control via the back door I've installed. Now off with you. LOCATION=UNKNOWN GOAL=ESCAPE 06316_ Sneak attack on N-01 Spotter. 06316_ Destroyed Lgt. Ion Engine. 06317_ N-01 Spotter is scanning... 06319_ N-01 Spotter sends a signal. 06319_ ALERT: Unidentified potential threat approaching Complex 0b10. 06319_ N-01 Spotter is scanning... 06321_ N-01 Spotter sends a signal. 06321_ ALERT: Unidentified potential threat approaching Complex 0b10. 06325_ Enhanced Grunt: "Protecting LRC-V3." 06335_ Antigrav System fries itself beyond repair. 06336_ Enhanced Grunt shuts down. 06339_ Enhanced Grunt rewired by P-70 Sage. Map ----- +----------------------------------------------------+ | ?????????????????????????????????????????????????? | | ?????????????????????????????????????????????????? | | ?????????????????????????????????????????????????? | | ?????????????????????????????????????????????????? | | ?????????????????????????????????????????????????? | | ?????????????????????????????????????????????????? | | ?????????????????????????????????????????????????? | | ?????????????????????????????????????????????????? | | ?????????????????????????????????????????????????? | | ?????????????????????????????????????????????????? | | ?????????????????????????????????????????????????? | | ?????????????????????????????????????????????????? | | ????????#??????????????????????? ##??????????????? | | ???????## ?????############## ##?????????????? | | ???????# ???### ??????????? | | ???????# #?# ??????????? | | ????????# #### ##### ##### #???????????? | | ?????????# ### #???# #???? ????????????? | | ??????#### ##??# #???# ??????????????? | | ??????# #### #??# ????????????????? | | ??????# ### #?# #?????????????????? | | ??????# ##?# #? #??????????????????? | | ??????# #### #### #????????????????????? | | ??????# #?????????????????????? | | ??????# p ##????????????????????? | | ??????####### ####@ #????????????????????? | | ???????????# ##??## #????????????????????? | | ???????????# |*!##?????# #????????????????????? | | ??????????# %##???????##????????????????????? | | ??????????# [[ ?????????????????????????????? | | ??????????# ????????????????????????????? | | ????????? ### ??????????????????????????? | | ????????? #??# ?????????????????????????? | | ????????? ##???? ?????????????????????????? | | ?????????? ##?????? ?????????????????????????? | | ?????????? #??????????????????????????????????? | | ??????????? ???????????????????????????????????? | | ??????????? ???????????????????????????????????? | | ?????????????????????????????????????????????????? | | ?????????????????????????????????????????????????? | | ?????????????????????????????????????????????????? | | ?????????????????????????????????????????????????? | | ?????????????????????????????????????????????????? | | ?????????????????????????????????????????????????? | | ?????????????????????????????????????????????????? | | ?????????????????????????????????????????????????? | | ?????????????????????????????????????????????????? | | ?????????????????????????????????????????????????? | | ?????????????????????????????????????????????????? | | ?????????????????????????????????????????????????? | +----------------------------------------------------+ Best States ------------- Heat Dissipation 56 Coolant Potential 65 Energy Generation 18 Energy Capacity 300 Matter Stores 300 Matter Capacity 300 Sight Range 16 Robot Scan Range 15 Terrain Scan Range 20 Terrain Scan Density 210 Armor Coverage 600 Resistance: KI 20 Propulsion Shielding 66 Evasion (%) 60 Recoil Reduction 4 Kinecelleration 30 Item Schematics ----------------- Combat Drone Bay | -6/Data Miner | Free Lgt. Regenerative Plating | -6/Data Miner | Free Enh. Armored Leg | -6/Data Miner | Free Exp. Heat Sink | -6/Data Miner | Free Hvy. Proton Missile Launcher | -6/Data Miner | Free Imp. Gyrokinetic Inverter | -6/Data Miner | Free Adv. Transmission Jammer | -6/Data Miner | Free Phase Gun | -6/Data Miner | Free Robot Schematics ------------------ A-15 Conveyor | -6/Data Miner | Free B-48 Gladiator | -6/Data Miner | Free M-22 Extractor | -6/Data Miner | Free L-61 Swordsman | -6/Data Miner | Free B-60 Warrior | -6/Data Miner | Free H-77 Assassin | -6/Data Miner | Free R-10 Processor | -6/Data Miner | Free Fabricated ------------ Nothing Repaired ---------- Nothing Alien Tech Used ----------------- None Achievements -------------- None Challenges ------------ None Game ------ Seed SapperWeaponDetector Manual? 0 Play Time 00:54:05 Cumulative 191.0 hours Start 2025.10.01 @ 21:32:18 End 2025.10.01 @ 22:27:25 Sessions 1 Manual Loads 0 Difficulty Rogue Special Mode None Game No. 170 Rogue 131 Adventurer 32 Explorer 7 Win Type - Total 2 Types 2/0/0/0/0/0/0/0/0/0 Lore% 49 Gallery% 63 Achievement% 55 Wizard Run 0 Options --------- Layout 1 ASCII 0 Keyboard 0 Movement Mouse Keybinds 0 Fullscreen 1 Font 24/Smallcaps Map View 50x35 Zoom Use 0% Tactical HUD 1 Map Filters NONE Filters NONE Steam 1 RUN: 41d64fca-591d-4e04-8b85-b685f5324a3c